bitfinex/quotes_ETHUSD_20250223
["timestamp","ask_amount","ask_price","bid_price","bid_amount"]
[1740293740713,4.38182,2791.8,2791.3,8.09558535]
[1740293740913,0.22481792,2791.4,2791.3,6.89295563]
[1740293741135,4.38182,2791.8,2791.3,6.89295563]
[1740293741303,0.22481792,2791.4,2791.3,6.89295563]
[1740293741505,4.38182,2791.8,2791.3,6.89295563]
[1740293741706,0.22481792,2791.4,2791.3,6.89295563]
[1740293742041,0.22481792,2791.4,2791.3,8.09558535]
[1740293742239,7.96381,2791.8,2791.3,8.09558535]
[1740293742408,0.22481792,2791.7,2791.3,8.09558535]
[1740293742808,4.38182,2791.8,2791.3,8.09558535]
[1740293743140,3.58206,2791.7,2791.3,4.51312535]
[1740293743309,3.80687792,2791.7,2791.3,4.51312535]
[1740293745638,0.22481792,2791.7,2791.3,4.51312535]
[1740293745842,4.38182,2791.8,2791.3,8.09561535]
[1740293746137,0.22481792,2791.7,2791.3,8.09561535]
[1740293746643,0.22481792,2791.6,2791.3,8.09561535]
[1740293746839,4.38182,2791.8,2791.3,8.09561535]
[1740293747036,0.22496646,2791.7,2791.3,8.09561535]
[1740293747338,4.38182,2791.8,2791.3,8.09561535]
[1740293747542,0.22496646,2791.6,2791.3,8.09561535]
[1740293747904,4.38182,2791.8,2791.3,8.09561535]
[1740293748106,0.22496646,2791.5,2791.3,8.09561535]
[1740293748409,4.38182,2791.8,2791.4,0.80956154]
[1740293748717,4.38182,2791.8,2791.3,8.09561535]
[1740293749318,3.58192,2791.8,2791.4,4.41232]
[1740293749737,3.58192,2791.8,2791.4,0.8299]
[1740293750441,0.22496646,2791.7,2791.4,0.8299]
[1740293750607,2.4356,2792.5,2791.6,2.43261275]
[1740293750811,0.8053,2792.5,2792.3,1.60271275]
[1740293751208,0.22497388,2792.4,2792.3,1.60271275]
[1740293751823,0.22497388,2792.4,2791.7,3.0]
[1740293751824,0.8053,2792.3,2791.7,1.60271275]
[1740293752139,3.58191,2791.8,2791.7,1.60271275]
[1740293752543,3.80791604,2791.8,2791.5,1.60271275]
[1740293752710,3.58212,2791.7,2791.4,3.80956654]
[1740293752911,3.58204,2791.7,2791.3,1.20262972]
[1740293753218,3.58238,2791.5,2791.2,9.52706143]
[1740293753543,3.58243,2791.4,2791.2,9.52706143]
[1740293753744,3.58269,2791.2,2790.9,3.30716143]
[1740293753943,3.58291,2791.1,2790.6,4.13706143]
[1740293754147,3.58297,2791.0,2790.7,3.0]
[1740293754645,0.22565711,2790.9,2790.7,3.0]
[1740293756745,3.58297,2791.0,2790.7,3.0]
[1740293757433,0.8053,2791.4,2790.7,3.0]
[1740293757634,3.58306,2791.0,2790.7,3.0]
[1740293758042,3.58303,2791.0,2790.7,3.0]
[1740293758350,0.22523386,2790.9,2790.7,3.0]
[1740293758758,3.80832386,2790.9,2790.7,3.0]
[1740293759455,3.58309,2790.9,2790.7,3.0]
[1740293759954,3.5832,2790.8,2790.7,3.0]
[1740293760320,3.80843386,2790.8,2790.7,3.0]
[1740293760520,0.22523386,2790.8,2790.7,3.0]
[1740293763360,0.22523386,2790.8,2790.7,4.78021152]
[1740293763658,3.58282,2791.1,2790.7,4.78021152]
[1740293763866,3.58282,2791.1,2790.7,3.0]
[1740293764060,3.5832,2790.8,2790.6,4.13706143]
[1740293764231,0.7792,2791.0,2790.6,4.13706143]
[1740293764560,3.58324,2790.8,2790.6,4.13706143]
[1740293764860,3.58327,2790.8,2790.6,4.13706143]
[1740293765047,0.22523386,2790.7,2790.6,7.13706143]
[1740293765248,3.58327,2790.8,2790.6,7.13706143]
[1740293765648,0.22503332,2790.7,2790.6,7.13706143]
[1740293766062,3.5831,2790.9,2790.6,7.13706143]
[1740293766461,0.22503332,2790.8,2790.6,7.13706143]
[1740293766850,3.5832,2790.8,2790.6,7.13706143]
[1740293767162,0.22503332,2790.7,2790.6,7.13706143]
[1740293767458,3.5832,2790.8,2790.6,7.13706143]
[1740293767664,0.22503332,2790.7,2790.6,7.13706143]
[1740293767863,3.5831,2790.9,2790.6,7.13706143]
[1740293768059,3.80824332,2790.8,2790.6,6.30716143]
[1740293769363,0.22503332,2790.8,2790.6,6.30716143]
[1740293769744,3.58307,2790.9,2790.6,6.30716143]
[1740293769948,0.22503332,2790.7,2790.6,6.30716143]
[1740293770134,3.5832,2790.8,2790.6,6.30716143]
[1740293770431,0.22503332,2790.7,2790.6,6.30716143]
[1740293770635,3.58307,2790.9,2790.6,6.30716143]
[1740293770848,3.80830332,2790.8,2790.6,6.30716143]
[1740293771631,3.58333,2790.7,2790.6,6.30716143]
[1740293771839,3.80823332,2790.8,2790.6,6.30716143]
[1740293772039,0.22503332,2790.7,2790.6,6.30716143]
[1740293772268,3.58333,2790.7,2790.6,6.30716143]
[1740293772468,3.80847332,2790.7,2790.3,4.36865068]
[1740293772770,3.58346,2790.6,2790.3,4.36865068]
[1740293773348,0.22503332,2790.5,2790.3,4.36865068]
[1740293774847,3.58371,2790.4,2790.3,3.0]
[1740293775574,3.80836453,2790.4,2790.3,3.0]
[1740293776069,0.22465453,2790.4,2790.3,3.0]
[1740293776677,0.22465453,2790.4,2790.1,5.39]
[1740293776873,3.80840453,2790.4,2790.2,3.0]
[1740293777073,0.22465453,2790.4,2790.1,4.96602614]
[1740293777371,3.58359,2790.5,2790.1,5.24185028]
[1740293777562,0.22465453,2790.3,2790.1,5.24185028]
[1740293777774,3.58378,2790.4,2790.1,5.24185028]
[1740293777959,0.22465453,2790.2,2790.1,5.24185028]
[1740293778148,3.5836,2790.5,2790.1,5.24185028]
[1740293778544,3.80837453,2790.4,2790.1,5.24185028]
[1740293778743,3.80837453,2790.4,2790.1,3.27582414]
[1740293779157,3.80837453,2790.4,2790.1,3.0]
[1740293779158,0.22465453,2790.4,2790.1,3.0]
[1740293779475,0.7792,2790.6,2790.1,3.0]
[1740293779677,3.58359,2790.5,2790.1,3.0]
[1740293779858,3.58359,2790.5,2790.1,8.01110014]
[1740293779859,0.22465453,2790.5,2790.1,8.01110014]
[1740293780579,0.22465453,2790.5,2790.1,4.42702014]
[1740293780780,0.22465453,2790.5,2790.1,8.01110014]
[1740293781081,3.80830453,2790.5,2790.1,4.42702014]
[1740293781249,0.22465453,2790.5,2790.1,8.01111014]
[1740293782046,4.36266,2790.6,2790.1,4.42702014]
[1740293783158,4.36266,2790.6,2790.2,0.11213718]
[1740293784958,4.36266,2790.6,2790.3,0.11213718]
[1740293785360,0.22465453,2790.5,2790.3,0.11213718]
[1740293785567,3.80824453,2790.5,2790.3,0.11213718]
[1740293785772,3.58359,2790.5,2790.3,0.11213718]
[1740293785950,0.22465453,2790.4,2790.3,0.11213718]
[1740293786349,0.22465453,2790.4,2790.1,4.42702014]
[1740293786569,3.80844453,2790.4,2790.1,4.42702014]
[1740293786778,3.58379,2790.4,2790.1,4.42702014]
[1740293786981,0.22465453,2790.3,2790.1,4.42702014]
[1740293787987,0.22465453,2790.3,2790.2,0.11214358]
[1740293788987,3.58359,2790.5,2790.2,0.11214358]
[1740293789159,0.22458024,2790.3,2790.2,0.11214358]
[1740293789367,3.58359,2790.5,2790.2,1.3619534]
[1740293789688,0.7792,2790.6,2790.2,1.3619534]
[1740293789852,4.36274,2790.6,2790.2,1.3619534]
[1740293790053,0.22458024,2790.5,2790.2,1.3619534]
[1740293790487,3.58352,2790.6,2790.2,1.3619534]
[1740293790682,3.58352,2790.6,2790.3,0.11214358]
[1740293790888,0.22458024,2790.5,2790.3,0.11214358]
[1740293792089,0.22458024,2790.5,2790.4,0.11214358]
[1740293792590,3.58346,2790.6,2790.4,0.11214358]
[1740293792787,0.22458024,2790.5,2790.4,0.11214358]
[1740293793953,4.34941,2790.8,2790.4,0.7858]
[1740293794157,0.22458024,2790.5,2790.4,0.7858]
[1740293794357,4.34941,2790.8,2790.4,0.7858]
[1740293794558,0.22458024,2790.5,2790.4,0.7858]
[1740293794794,3.58333,2790.7,2790.4,2.39024234]
[1740293794969,4.34941,2790.8,2790.6,1.60444234]
[1740293795559,0.22458024,2790.7,2790.6,1.60444234]
[1740293796391,4.34941,2790.8,2790.6,1.60444234]
[1740293796591,0.22458024,2790.7,2790.6,1.60444234]
[1740293797389,4.34941,2790.8,2790.6,1.60444234]
[1740293797587,0.22458024,2790.7,2790.6,1.60444234]
[1740293797960,4.34941,2790.8,2790.6,1.60444234]
[1740293798299,0.22458024,2790.7,2790.6,1.60444234]
[1740293798481,4.34941,2790.8,2790.6,1.60444234]
[1740293798677,0.22458024,2790.7,2790.6,1.60444234]
[1740293798990,4.34941,2790.8,2790.6,1.60444234]
[1740293799288,0.22458024,2790.7,2790.6,5.18789234]
[1740293799487,0.22458024,2790.7,2790.6,6.25471657]
[1740293799694,0.7774,2791.3,2790.7,3.5832]
[1740293799893,0.7774,2791.3,2790.9,1.60444234]
[1740293800057,0.22458024,2791.1,2790.9,1.60444234]
[1740293800260,0.7774,2791.3,2790.9,1.60444234]
[1740293800460,4.36004,2791.3,2790.9,1.60444234]
[1740293800664,0.22458024,2791.2,2790.7,3.58332]
[1740293800895,0.22458024,2791.2,2790.7,4.73752254]
[1740293801398,3.80727024,2791.2,2790.7,4.73752254]
[1740293802085,0.22458024,2791.2,2790.7,4.73752254]
[1740293802284,0.22458024,2791.2,2790.7,4.73745254]
[1740293802581,0.22458024,2791.2,2790.8,3.58319]
[1740293802975,4.35997,2791.3,2790.8,3.58319]
[1740293803176,0.22458024,2791.1,2790.8,4.8527798]
[1740293803377,4.35997,2791.3,2790.8,1.2695898]
[1740293803579,0.22458024,2791.0,2790.8,1.2695898]
[1740293803776,4.35997,2791.3,2790.8,1.2695898]
[1740293803966,0.22458024,2790.9,2790.8,1.2695898]
[1740293804171,4.35997,2791.3,2790.8,1.2695898]
[1740293804701,0.22458024,2791.2,2790.8,1.2695898]
[1740293804902,4.35997,2791.3,2790.8,1.2695898]
[1740293805303,0.22458024,2791.2,2790.8,1.2695898]
[1740293805498,4.35997,2791.3,2790.8,1.2695898]
[1740293805807,0.22472878,2791.2,2790.8,1.2695898]
[1740293805984,0.22472878,2791.2,2790.9,0.65278941]
[1740293806187,4.35997,2791.3,2790.9,0.65278941]
[1740293806374,0.22472878,2791.1,2790.9,0.65278941]
[1740293806668,0.7774,2791.3,2790.9,0.65278941]
[1740293806871,0.7512,2791.5,2790.9,8.33909062]
[1740293807079,0.7512,2791.5,2791.0,4.90210704]
[1740293807373,0.22472878,2791.4,2791.0,4.90210704]
[1740293808099,0.22472878,2791.4,2791.0,8.48503704]
[1740293808308,0.22472878,2791.4,2791.0,4.90210704]
[1740293808985,0.22472878,2791.4,2791.1,3.58275]
[1740293809308,3.58223,2791.6,2791.2,0.8484857]
[1740293809678,0.22482535,2791.5,2791.1,3.58275]
[1740293810184,0.22482535,2791.5,2791.1,3.58273]
[1740293810515,4.3333,2791.7,2791.1,3.58273]
[1740293810681,4.3333,2791.7,2791.1,7.16546]
[1740293810885,0.22482535,2791.6,2791.2,3.58268]
[1740293811086,0.22482535,2791.6,2791.2,0.716541]
[1740293811511,0.22482535,2791.6,2791.4,3.58242]
[1740293812109,0.22482535,2791.6,2791.3,4.37735]
[1740293813174,0.22482535,2791.6,2791.4,3.58242]
[1740293813411,0.22482535,2791.6,2791.3,0.7948]
[1740293813593,0.22482535,2791.6,2791.3,5.21758922]
[1740293813796,0.22482535,2791.6,2791.4,3.58241]
[1740293814406,3.58179,2791.9,2791.4,3.58241]
[1740293814791,0.22484763,2791.8,2791.3,5.21757922]
[1740293815477,0.22484763,2791.8,2791.3,5.21750922]
[1740293815684,3.80678763,2791.8,2791.4,0.85259404]
[1740293815906,0.22484763,2791.8,2791.4,0.85259404]
[1740293816210,3.80676763,2791.8,2791.4,0.85259404]
[1740293817095,3.80681763,2791.8,2791.4,0.85259404]
[1740293818215,3.58204,2791.7,2791.4,0.85259404]
[1740293818410,3.80676763,2791.8,2791.4,0.85259404]
[1740293818614,3.58192,2791.8,2791.4,0.85259404]
[1740293818813,3.80689763,2791.7,2791.4,0.85259404]
[1740293819284,0.22484763,2791.7,2791.4,0.85259404]
[1740293819484,3.58193,2791.8,2791.5,0.5229944]
[1740293819787,0.22492931,2791.7,2791.4,0.85259404]
[1740293820296,3.58193,2791.8,2791.4,0.85259404]
[1740293820511,0.22492931,2791.7,2791.4,0.85259404]
[1740293820818,3.58193,2791.8,2791.4,0.85259404]
[1740293821031,0.22492931,2791.6,2791.4,0.85259404]
[1740293821216,3.58193,2791.8,2791.4,0.85259404]
[1740293821423,0.22492931,2791.5,2791.4,0.85259404]
[1740293821621,3.58193,2791.8,2791.4,0.85259404]
[1740293821794,0.22492931,2791.5,2791.3,3.7948]
[1740293822125,0.22492931,2791.4,2791.3,3.7948]
[1740293822319,3.58206,2791.7,2791.3,3.7948]
[1740293822488,3.58199,2791.8,2791.3,7.37734]
[1740293822690,3.58199,2791.8,2791.4,1.60352867]
[1740293823003,0.22492931,2791.7,2791.4,1.60352867]
[1740293823524,0.22492931,2791.6,2791.4,1.60352867]
[1740293823718,3.58199,2791.8,2791.4,1.60352867]
[1740293823917,0.8128,2791.6,2791.2,1.60352867]
[1740293824215,3.58269,2791.2,2791.0,1.60352867]
[1740293824416,3.58249,2791.4,2791.0,1.60352867]
[1740293824715,3.58259,2791.3,2791.0,1.60352867]
[1740293824920,0.22535266,2791.2,2791.0,1.60352867]
[1740293825109,3.58259,2791.3,2791.0,1.60352867]
[1740293825306,0.22535266,2791.2,2791.0,1.60352867]
[1740293825505,4.41309,2791.2,2791.0,1.60352867]
[1740293825728,0.22529327,2791.1,2791.0,1.60352867]
[1740293826515,3.58257,2791.3,2791.0,1.60352867]
[1740293826749,4.41289,2791.4,2791.0,1.60352867]
[1740293827021,0.22529327,2791.2,2791.0,1.60352867]
[1740293827220,4.41289,2791.4,2791.0,1.60352867]
[1740293827720,0.22529327,2791.3,2791.0,1.60352867]
[1740293829319,0.22529327,2791.3,2791.2,1.60352867]
[1740293834594,7.99487,2791.6,2791.2,1.60352867]
[1740293834799,0.22529327,2791.3,2791.2,1.60352867]
[1740293834995,7.99488,2791.6,2791.2,1.60352867]
[1740293835196,0.22529327,2791.3,2791.2,1.60352867]
[1740293835404,4.41261,2791.6,2791.2,1.60352867]
[1740293835609,0.22529327,2791.3,2791.2,1.60352867]
[1740293835808,7.99489,2791.6,2791.2,1.60352867]
[1740293836009,0.22529327,2791.3,2791.2,1.60352867]
[1740293836213,4.41261,2791.6,2791.2,1.60352867]
[1740293836410,0.22529327,2791.3,2791.2,1.60352867]
[1740293836708,4.41261,2791.6,2791.2,1.60352867]
[1740293837123,0.22529327,2791.5,2791.2,1.60352867]
[1740293839412,0.22529327,2791.5,2791.4,1.60352867]
[1740293839808,3.58206,2791.7,2791.4,1.60352867]
[1740293840035,0.2252784,2791.5,2791.4,1.60352867]
[1740293840219,3.58206,2791.7,2791.4,1.60352867]
[1740293840418,0.2252784,2791.5,2791.4,1.60352867]
[1740293840619,3.58206,2791.7,2791.4,1.60352867]
[1740293840818,0.22529326,2791.5,2791.4,1.60352867]
[1740293841030,3.58206,2791.7,2791.4,1.60352867]
[1740293841228,0.22529326,2791.5,2791.4,1.60352867]
[1740293841425,0.794345,2791.7,2791.4,1.60352867]
[1740293841630,0.22529326,2791.5,2791.3,3.58248]
[1740293841828,4.60352867,2792.8,2791.8,3.58183]
[1740293841829,0.7636,2792.2,2791.8,3.58183]
[1740293842036,0.7636,2792.2,2791.9,1.60352867]
[1740293842241,0.22530812,2792.1,2791.9,1.60352867]
[1740293842919,4.34502,2792.2,2791.9,1.60352867]
[1740293843121,0.22530812,2792.1,2791.9,1.60352867]
[1740293846153,3.80684812,2792.1,2791.7,1.60352867]
[1740293847257,3.80684812,2792.1,2791.7,2.56240654]
[1740293848518,3.58191,2791.8,2791.5,0.8209]
[1740293848724,3.5822,2791.6,2791.5,1.60352867]
[1740293849139,3.80789421,2791.6,2791.3,2.42442867]
[1740293849339,0.22569421,2791.6,2791.3,3.32514654]
[1740293849742,3.58204,2791.7,2791.3,3.32514654]
[1740293849950,0.22569421,2791.6,2791.3,3.32514654]
[1740293850758,3.58219,2791.6,2791.3,3.32514654]
[1740293850963,0.22569421,2791.5,2791.3,3.32514654]
[1740293852328,3.80800421,2791.5,2791.3,3.32514654]
[1740293852527,3.80800421,2791.5,2791.3,2.42442867]
[1740293852725,0.7636,2792.2,2791.4,4.40333]
[1740293852924,0.7636,2792.7,2792.1,5.18499867]
[1740293853129,3.78676051,2792.6,2792.3,1.60352867]
[1740293853749,1.01896456,2792.6,2792.1,1.60352867]
[1740293854030,4.34494,2792.3,2792.1,1.60352867]
[1740293854462,0.20585051,2792.2,2792.1,1.60352867]
[1740293854660,0.7636,2792.3,2792.1,1.60352867]
[1740293854858,0.20585051,2792.2,2791.9,1.60352867]
[1740293855040,3.58121,2792.4,2792.1,1.60352867]
[1740293855237,0.7636,2792.5,2792.3,1.60352867]
[1740293855445,4.34462,2792.5,2792.3,1.60352867]
[1740293855973,3.58114,2792.4,2792.3,1.60352867]
[1740293856167,4.34462,2792.5,2792.3,1.60352867]
[1740293856469,0.7636,2792.5,2792.3,1.60352867]
[1740293856668,0.7636,2792.5,2792.1,3.30505449]
[1740293857460,4.34465,2792.5,2792.1,3.30505449]
[1740293858748,0.7636,2792.5,2792.1,6.88657449]
[1740293859064,0.7636,2792.5,2792.1,3.30505449]
[1740293859751,0.7636,2792.5,2792.1,6.88656449]
[1740293860074,3.58059,2792.9,2792.2,4.34634]
[1740293860241,0.20705015,2792.4,2792.3,3.58118]
[1740293860441,0.7687,2793.0,2792.2,4.34634]
[1740293860773,3.5807,2792.8,2792.2,4.34634]
[1740293860955,3.5807,2792.8,2792.2,7.92767]
[1740293861161,0.20705015,2792.7,2792.2,4.34633]
[1740293862173,0.20705015,2792.7,2792.3,3.58117]
[1740293862375,3.58051,2792.9,2792.3,3.58117]
[1740293862578,0.20705015,2792.6,2792.3,3.58117]
[1740293862745,3.58051,2792.9,2792.3,3.58117]
[1740293862945,0.20705015,2792.8,2792.3,3.58117]
[1740293864473,3.78775015,2792.8,2792.2,5.52543334]
[1740293864644,3.78775015,2792.8,2792.3,3.58126]
[1740293866567,2.4446,2793.6,2793.1,3.58019]
[1740293866777,0.8143,2793.6,2793.1,3.58019]
[1740293867183,0.8143,2793.6,2793.2,3.58001]
[1740293868081,0.8143,2793.6,2793.0,3.30505449]
[1740293868250,0.8143,2793.6,2793.1,7.1603]
[1740293868446,0.8143,2793.6,2793.0,3.30505449]
[1740293868653,0.8143,2793.8,2793.3,4.36199]
[1740293869267,0.005,2793.9,2793.4,3.57975]
[1740293869785,0.005,2793.9,2793.5,3.57973]
[1740293871176,0.005,2793.9,2793.6,3.5796]
[1740293871356,0.005,2793.9,2793.5,3.57973]
[1740293871557,0.005,2793.9,2793.5,7.15938]
[1740293871758,0.005,2793.9,2793.6,3.57959]
[1740293871979,0.005,2793.9,2793.5,3.57965]
[1740293872189,0.005,2793.9,2793.3,4.08715449]
[1740293872388,3.5843,2793.9,2793.3,8.61476994]
[1740293872990,3.5843,2793.9,2793.4,3.57985]
[1740293873588,3.57937,2793.8,2793.3,8.61476994]
[1740293873762,3.5843,2793.9,2793.3,5.03486994]
[1740293873957,3.57949,2793.7,2793.3,8.61485994]
[1740293874367,0.18681785,2793.6,2793.3,8.61485994]
[1740293874673,0.18681785,2793.6,2793.3,5.03486994]
[1740293875554,0.18681785,2793.6,2793.3,4.08715449]
[1740293876161,3.76642785,2793.6,2793.3,4.08715449]
[1740293876461,0.8143,2793.5,2793.1,5.39]
[1740293876681,3.58012,2793.2,2793.1,5.39]
[1740293877092,3.76731736,2793.2,2793.1,5.39]
[1740293878095,4.40597,2793.1,2792.7,3.30505449]
[1740293878287,3.58048,2793.0,2792.7,3.30505449]
[1740293878458,3.5805,2792.9,2792.7,3.30505449]
[1740293878663,3.76770479,2792.9,2792.7,3.30505449]
[1740293879002,3.76772479,2792.9,2792.5,0.8319]
[1740293879173,3.76772479,2792.9,2792.5,1.41994869]
[1740293879495,7.98637,2793.1,2792.5,5.00093869]
[1740293879886,4.40603,2793.1,2792.7,3.30505449]
[1740293880392,3.58039,2793.0,2792.7,3.30505449]
[1740293880574,3.76759479,2793.0,2792.7,3.30505449]
[1740293881169,0.18720479,2793.0,2792.7,6.88571449]
[1740293881565,0.18720479,2793.0,2792.7,8.07436081]
[1740293882306,0.18720479,2793.0,2792.9,3.5805]
[1740293882484,0.18720479,2793.0,2792.9,4.3727]
[1740293882684,1.6303,2793.5,2793.1,3.58013]
[1740293882890,1.6303,2793.5,2793.2,3.58012]
[1740293883076,0.18701132,2793.4,2793.1,3.30505449]
[1740293883404,1.6303,2793.5,2793.1,7.29499994]
[1740293883590,1.6303,2793.5,2793.3,3.57998]
[1740293883785,3.57952,2793.7,2793.2,3.58011]
[1740293883996,3.57977,2793.5,2793.1,3.71477994]
[1740293884302,3.57994,2793.4,2793.1,3.30505449]
[1740293884498,3.57977,2793.5,2793.1,3.30505449]
[1740293884686,3.57993,2793.4,2793.1,3.30505449]
[1740293884994,0.7651,2793.8,2792.9,0.7922]
[1740293884995,3.58008,2793.3,2792.9,0.7922]
[1740293885588,0.18707829,2793.2,2792.9,0.7922]
[1740293885762,0.18707829,2793.2,2792.9,2.03691408]
[1740293886382,0.18707829,2793.2,2792.9,5.61740408]
[1740293887705,0.18707829,2793.2,2792.9,9.19784408]
[1740293887887,7.15963,2793.5,2792.9,9.19784408]
[1740293888089,0.18707829,2793.1,2792.9,9.19779408]
[1740293888297,3.57979,2793.5,2793.0,1.25028486]
[1740293888483,0.18707829,2793.0,2792.9,4.37259]
[1740293888686,7.15962,2793.5,2792.9,4.37259]
[1740293888886,0.18707829,2793.0,2792.9,4.37259]
[1740293889080,3.57979,2793.5,2792.9,4.37259]
[1740293889285,3.57979,2793.5,2793.1,3.30505449]
[1740293889802,3.57955,2793.7,2793.1,4.43083794]
[1740293890004,0.7651,2793.8,2793.4,6.88488449]
[1740293890210,0.005,2793.9,2793.5,3.57966]
[1740293890503,0.005,2793.9,2793.6,3.57954]
[1740293891081,0.005,2793.9,2793.4,6.88482449]
[1740293891382,3.57938,2793.8,2793.4,3.30505449]
[1740293891586,3.57938,2793.8,2793.4,4.73077994]
[1740293892378,0.005,2793.9,2793.4,4.73077994]
[1740293892691,0.005,2793.9,2793.5,3.57967]
[1740293896878,3.58425,2793.9,2793.5,3.57967]
[1740293899133,0.005,2793.9,2793.6,0.815]
[1740293899340,0.005,2793.9,2793.7,4.376814]
[1740293899684,0.005,2793.9,2793.7,0.797434]
[1740293900185,0.005,2793.9,2793.8,3.57935]
[1740293900515,0.17935457,2793.9,2793.8,3.57935]
[1740293900687,0.005,2793.9,2793.7,0.797434]
[1740293900898,0.17935457,2793.9,2793.7,4.376874]
[1740293901315,0.17935457,2793.9,2793.8,4.08153408]
[1740293902608,0.17935457,2793.9,2793.8,0.50218408]
[1740293903733,0.005,2793.9,2793.8,0.50218408]
[1740293903938,0.17951925,2793.9,2793.8,0.50218408]
[1740293904530,0.005,2793.9,2793.8,4.88253408]
[1740293907111,0.17951925,2793.9,2793.8,4.88253408]
[1740293907442,0.005,2793.9,2793.8,4.88253408]
[1740293907741,0.005,2793.9,2793.8,10.27253408]
[1740293907943,0.17981864,2793.9,2793.8,10.27253408]
[1740293908120,0.005,2793.9,2793.8,10.27253408]
[1740293909315,0.005,2793.9,2793.8,13.82253408]
[1740293910155,0.7243801,2793.9,2793.8,14.54306106]
[1740293915824,0.7243801,2793.9,2793.8,14.81067247]
[1740293917063,0.7243801,2793.9,2793.8,9.61271106]
[1740293917352,1.4812801,2793.9,2793.8,16.49711555]
[1740293917835,0.7243801,2793.9,2793.8,16.49711555]
[1740293918030,0.7243801,2793.9,2793.8,17.31921555]
[1740293918230,0.89972272,2793.9,2793.8,17.31921555]
[1740293918449,0.7243801,2793.9,2793.8,17.31921555]
[1740293919460,0.89964788,2793.9,2793.8,17.31921555]
[1740293919636,0.7243801,2793.9,2793.8,17.31921555]
[1740293926159,0.7243801,2793.9,2793.8,17.86921555]
[1740293930579,0.7996,2794.7,2793.9,3.55]
[1740293930861,0.7996,2794.7,2794.6,6.88337449]
[1740293932357,0.7996,2795.3,2794.6,6.88337449]
[1740293932535,0.7996,2795.3,2795.2,6.88261449]
[1740293932736,0.9754215,2795.3,2795.2,6.88261449]
[1740293933137,0.7996,2795.3,2795.2,6.88261449]
[1740293933338,0.97545139,2795.3,2795.2,6.88261449]
[1740293933533,0.97545139,2795.3,2795.2,3.30505449]
[1740293934340,0.97545139,2795.3,2795.2,6.88261449]
[1740293934786,0.97545139,2795.3,2795.2,3.30505449]
[1740293935087,0.7996,2795.3,2795.2,3.30505449]
[1740293935447,0.97590018,2795.3,2795.2,3.30505449]
[1740293936973,0.97590018,2795.3,2795.2,6.88261449]
[1740293937678,0.97590018,2795.3,2795.2,3.30505449]
[1740293937873,0.97590018,2795.3,2795.2,6.88261449]
[1740293938076,0.97590018,2795.3,2795.2,7.14496967]
[1740293938251,0.7996,2795.3,2795.2,7.14496967]
[1740293938456,0.8223,2795.5,2795.2,7.14496967]
[1740293938656,0.8223,2795.5,2795.3,3.57737]
[1740293938962,0.8223,2795.5,2795.4,3.5773]
[1740293939144,0.8223,2795.5,2795.3,3.57743]
[1740293939341,0.8223,2796.1,2795.5,3.57711]
[1740293939545,0.8223,2796.1,2795.7,3.30505449]
[1740293939773,0.8223,2795.9,2795.7,3.30505449]
[1740293939978,4.39897,2795.9,2795.7,3.30505449]
[1740293941275,0.8223,2795.9,2795.7,3.30505449]
[1740293941577,0.8223,2796.2,2795.8,3.57679]
[1740293941750,0.8223,2796.2,2796.0,6.88151449]
[1740293942147,0.775,2796.7,2796.0,3.30505449]
[1740293942349,0.775,2796.7,2796.5,3.30505449]
[1740293942684,0.525,2796.7,2796.5,3.30505449]
[1740293943666,0.525,2796.7,2796.6,3.57577]
[1740293943881,0.525,2796.7,2796.6,1.04566045]
[1740293944249,0.525,2796.7,2796.5,6.88085449]
[1740293944486,0.525,2796.7,2796.5,3.30505449]
[1740293944646,0.525,2796.7,2796.6,3.57577]
[1740293944850,0.149048,2796.8,2796.6,3.57577]
[1740293945049,0.149048,2796.8,2796.5,6.88084449]
[1740293945258,0.149048,2796.8,2796.6,4.26384445]
[1740293945463,0.149048,2796.8,2796.6,0.68808445]
[1740293945658,0.149048,2796.8,2796.7,3.57564]
[1740293945861,0.149048,2796.8,2796.7,7.40034]
[1740293947664,0.31501304,2796.8,2796.7,7.40034]
[1740293947869,0.31501304,2796.8,2796.7,8.92306289]
[1740293948504,3.57425,2797.8,2796.7,8.92306289]
[1740293948505,1.6303,2798.2,2797.2,3.575]
[1740293948709,0.775,2797.6,2797.5,3.57462]
[1740293949203,0.775,2797.6,2797.5,6.57462]
[1740293949370,0.775,2798.2,2797.7,3.57436]
[1740293949556,4.34873,2798.2,2797.7,3.57436]
[1740293949757,4.34873,2798.2,2797.6,3.57445]
[1740293950072,3.57387,2798.1,2797.8,3.30505449]
[1740293951912,7.14782,2798.1,2797.8,3.30505449]
[1740293952111,3.57387,2798.1,2797.8,3.30505449]
[1740293952328,3.574,2798.0,2797.8,3.30505449]
[1740293952489,3.57387,2798.1,2797.8,3.30505449]
[1740293952817,4.366125,2798.1,2797.8,3.30505449]
[1740293954493,0.775,2798.2,2798.1,3.57385]
[1740293954699,0.775,2798.8,2798.1,3.30505449]
[1740293955022,0.775,2798.8,2798.2,3.57369]
[1740293955320,0.775,2798.8,2798.4,3.5734]
[1740293955492,0.13489994,2798.7,2798.5,3.30505449]
[1740293955675,0.775,2798.8,2798.6,3.57315]
[1740293955984,0.13498205,2798.7,2798.5,6.87832449]
[1740293956184,0.775,2798.8,2798.6,3.57321]
[1740293956501,0.775,2798.8,2798.6,3.5731]
[1740293956823,0.13498205,2798.7,2798.6,3.5731]
[1740293957125,0.775,2798.8,2798.6,3.5731]
[1740293957480,0.13498205,2798.7,2798.6,3.5731]
[1740293957680,0.005,2798.9,2798.6,3.5731]
[1740293958086,0.13587748,2798.8,2798.7,3.57308]
[1740293958287,0.13587748,2798.8,2798.6,7.1462]
[1740293958508,0.13587748,2798.8,2798.6,3.5731]
[1740293959287,0.13587748,2798.8,2798.7,3.57308]
[1740293959486,0.13587748,2798.8,2798.6,3.57321]
[1740293960081,0.13587748,2798.8,2798.5,6.87830449]
[1740293960280,0.13587748,2798.8,2798.7,3.57308]
[1740293960480,0.005,2798.9,2798.5,4.67650449]
[1740293960680,0.005,2798.9,2798.5,3.30505449]
[1740293960912,0.13601176,2798.8,2798.5,3.30505449]
[1740293961312,0.13601176,2798.8,2798.5,6.87836449]
[1740293962083,0.13601176,2798.8,2798.5,3.30505449]
[1740293962984,0.13601176,2798.8,2798.6,3.57319]
[1740293963184,0.13601176,2798.8,2798.5,6.87838449]